Cogmind - Beta 15 @@@ ROGUE MODE // 2025.10.20 @ 23:30:08 Player: DietSnapple Result: Destroyed by H-61 Shepherd with Heavy Assault Cannon Performance ------------- Evolutions (4) 2000 Regions Visited (8) 1600 Robots Destroyed (56) 280 Value Destroyed (1716) 1716 Prototype IDs (3) 60 Alien Tech Used (0) 0 Bonus (500) 500 TOTAL SCORE: 6156 Bonus ------- Entered DSFs 500 Cogmind --------- Core Integrity 0/850 Matter 24/300 Energy 69/290 System Corruption 15% Temperature Cool (0) Movement Flying (24) Location -6/Factory Parts ------- > --- POWER (2) -------- Improved Deuterium Engine > --- PROPULSION (4) --- Cooled VTOL Module Nuclear Pulse Thruster Improved Surge Thruster Improved Surge Thruster (fused) > --- UTILITY (6) ------ Advanced Weight Redist. System Improved Sensor Array Improved Signal Interpreter Advanced ECM Suite Improved Light Armor Plating System Shield > --- WEAPON (3) ------- Chainsword > --- INVENTORY (5) ---- Surge Thruster Improved Surge Thruster Hardened Light Armor Plating Peak State ------------ > --- POWER ------------ Light Nuclear Core Light Nuclear Core > --- PROPULSION ------- Improved Surge Thruster Improved Surge Thruster Nuclear Pulse Array > --- UTILITY ---------- Small Storage Unit Advanced Weight Redist. System Improved Sensor Array Improved Signal Interpreter Advanced Kinecellerator Improved Hacking Suite > --- WEAPON ----------- Proton Cannon Makeshift Shrapnel Gun Blade Saw > --- INVENTORY -------- Cooled VTOL Module Improved Surge Thruster Enhanced Optical Array IFF Parser Transmission Jammer ECM Suite System Shield [Rating: 66] Favorites ----------- Power Ion Engine Engine Ion Engine Power Core Light Nuclear Core Propulsion Wheel Leg Improved Titanium Leg Wheel Wheel Flight Unit Improved Surge Thruster Utility High-capacity Storage Unit Device Improved Sensor Array Storage High-capacity Storage Unit Processor Improved Signal Interpreter Hackware Improved Hacking Suite Protection Light Armor Plating Weapon Mini Grenade Launcher Energy Gun Medium Laser Energy Cannon Beam Cannon Ballistic Gun Makeshift Shrapnel Gun Launcher Mini Grenade Launcher Slashing Weapon Makeshift Axe Build | -11 -10 -10 -9 -7 -7 -6 -6 -6 ------- Run | Yrd Mat Sub Rec Fac DSF Fac Was Fac Slots Evolved 8 | . . . . 6 . 2 . . Power 1 | . . . . 1 . . . . Propulsion 2 | . . . . . . 2 . . Utility 4 | . . . . 4 . . . . Weapon 1 | . . . . 1 . . . . Parts Attached 89 | 6 11 17 1 4 11 23 . 16 Power 8 | 1 . 3 . . . 3 . 1 Engine 6 | 1 . 3 . . . 1 . 1 Core 2 | . . . . . . 2 . . Reactor . | . . . . . . . . . Propulsion 29 | 2 2 5 1 1 7 8 . 3 Treads . | . . . . . . . . . Leg 6 | . . . . . 4 2 . . Wheel 11 | 2 2 5 1 1 . . . . Hover . | . . . . . . . . . Flight 12 | . . . . . 3 6 . 3 Utility 35 | 1 6 2 . 3 4 9 . 10 Device 14 | . 1 . . 1 . 6 . 6 Storage 6 | 1 4 . . . . 1 . . Processor 3 | . . . . . . 1 . 2 Hackware 3 | . . . . 1 . 1 . 1 Protection 9 | . 1 2 . 1 4 . . 1 Artifact . | . . . . . . . . . Weapon 17 | 2 3 7 . . . 3 . 2 Energy Gun 3 | 2 1 . . . . . . . Energy Cannon 3 | . 2 . . . . 1 . . Ballistic Gun 2 | . . . . . . 1 . 1 Ballistic Cannon . | . . . . . . . . . Launcher 6 | . . 6 . . . . . . Special Weapon . | . . . . . . . . . Impact Weapon . | . . . . . . . . . Slashing Weapon 3 | . . 1 . . . 1 . 1 Piercing Weapon . | . . . . . . . . . Special Melee Weapon . | . . . . . . . . . Unidentified Prototypes 3 | . . . . . . 2 . 1 Parts Lost 28 | . 1 8 1 . 10 . . 8 Power 5 | . . 3 . . . . . 2 Propulsion 9 | . 1 1 . . 6 . . 1 Utility 9 | . . 2 1 . 2 . . 4 Weapon 5 | . . 2 . . 2 . . 1 Highest Loss Streak 6 | . 1 3 1 . 6 . . 5 To Critical Strikes . | . . . . . . . . . Average Backups 12 | 2 12 17 15 13 14 3 8 6 Power . | . 1 . . . . . . . Propulsion 2 | 1 2 1 1 2 5 1 2 1 Utility 5 | . 4 7 8 6 4 1 5 4 Weapon 4 | . 4 6 4 3 2 . . . Tool/Special . | . . . . . . . . . Unused Backups 24 | . 6 2 . . 7 3 1 5 Power . | . . . . . . . . . Propulsion 9 | . 2 1 . . 4 1 1 . Utility 11 | . 1 1 . . 2 2 . 5 Weapon 3 | . 3 . . . . . . . Tool/Special 1 | . . . . . 1 . . . Average Slot Usage (%) 82 | . 97 92 71 50 64 59 93 65 Engine 8 | . 14 13 . . . 4 . 1 Core 1 | . . . . . . 2 13 8 Wheel 17 | . 26 23 28 15 8 . . . Flight 3 | . . . . . . 6 20 17 Device 5 | . 4 . . . 6 13 20 15 Storage 11 | . 16 14 14 7 7 4 6 3 Processor 1 | . . . . . . 3 6 4 Hackware 1 | . . . . 5 6 1 6 5 Protection 7 | . 5 13 . 5 8 . . . Energy Gun 3 | . 13 . . . . . . . Energy Cannon 5 | . 14 2 . . . 7 6 . Launcher 10 | . . 21 26 7 13 . . . Slashing Weapon 2 | . . 2 1 7 6 1 6 5 Peak Build Rating 66 | 6 10 19 12 22 31 65 63 66 Average Rating 19 | 4 8 13 10 17 23 34 63 43 On Entrance 21 | . 6 9 12 12 22 6 63 63 Naked Turns 6 | . . . . . 6 . . . Heaviest Build 72 | 13 54 55 45 66 72 30 29 31 Greatest Support 40 | 20 20 40 30 20 40 33 30 30 Greatest Overweight (x) 5 | . 5 5 4 3 5 1 . 3 Average Overweight (x) 1 | . 1 2 1 3 1 . . . Largest Inventory Capacity 20 | 8 20 20 20 20 20 8 8 8 Average Capacity 15 | 7 16 20 20 20 18 5 8 6 Most Carried 20 | 4 19 20 20 19 19 8 8 8 Average Carried 13 | 2 13 17 19 15 16 3 8 6 Final Capacity 20 | 8 20 20 20 20 5 8 8 5 Final Carried 19 | 4 18 19 19 12 5 8 8 3 Class Distribution -------------------- 76% | Mutant 7% | Infiltrator-Sprinter 5% | Sprinter 5% | Skirmisher 4% | Scavenger-Mutant Dominant Class ---------------- Mutant | -10/Materials Mutant | -10/Subcaves Mutant | -9/Recycling Scavenger-Mutant | -7/Factory Scavenger-Mutant | -7/DSF Skirmisher | -6/Factory Sprinter | -6/Waste Infiltrator-Sprinter | -6/Factory Resources | -11 -10 -10 -9 -7 -7 -6 -6 -6 ----------- Run | Yrd Mat Sub Rec Fac DSF Fac Was Fac Matter Collected 1857 | 202 293 431 358 . 280 137 . 156 Remotely 270 | . . . . . 270 . . . Salvage Created 1679 | . 636 323 17 . 287 235 . 181 Parts 108 | . 36 20 5 . 18 19 . 10 Haulers Intercepted 2 | . 2 . . . . . . . Recyclers Shooed 2 | . 2 . . . . . . . Parts Field Recycled . | . . . . . . . . . Retrieved Matter . | . . . . . . . . . Parts Self-Destructed 10 | . . 10 . . . . . . Prevented . | . . . . . . . . . Kills | -11 -10 -10 -9 -7 -7 -6 -6 -6 ------- Run | Yrd Mat Sub Rec Fac DSF Fac Was Fac Combat Hostiles Destroyed 44 | . 11 17 1 . 6 5 . 4 Melee 4 | . . . . . . . . 4 Guns 11 | . 7 . . . . 4 . . Cannons 4 | . 3 . . . . 1 . . AOE 24 | . . 17 1 . 6 . . . Classes Destroyed 14 | . 7 3 1 . 1 2 . . Worker 2 | . 1 . . . . 1 . . Builder 2 | . . . 2 . . . . . Hauler 2 | . 2 . . . . . . . Recycler 2 | . 2 . . . . . . . Operator 1 | . 1 . . . . . . . Turret 2 | . . 2 . . . . . . Watcher 1 | . 1 . . . . . . . Swarmer 10 | . 3 6 . . . 1 . . Cutter 4 | . . . . . . 2 . 2 Grunt 11 | . 8 . . . 3 . . . Sentry 4 | . . 1 1 . . . . 2 Specialist 3 | . . . . . 3 . . . Programmer 2 | . . . . . . 2 . . Subdweller 10 | . . 10 . . . . . . Best Kill Streak 8 | . 8 4 3 . 3 2 . 2 Combat Bots Only 8 | . 8 4 1 . 3 2 . 2 Max Kills in Single Turn 3 | . 1 3 3 . 2 1 . 1 Gunslinging . | . . . . . . . . . Exploded 3 | . . 3 1 . 2 . . . Melee 1 | . . . . . . . . 1 Uniques/NPCs Destroyed . | . . . . . . . . . Combat | -11 -10 -10 -9 -7 -7 -6 -6 -6 -------- Run | Yrd Mat Sub Rec Fac DSF Fac Was Fac Hostile Shots Fired 529 | . 47 77 12 . 146 55 . 192 Missed 192 | . 19 28 4 . 44 23 . 74 Hits 337 | . 28 49 8 . 102 32 . 118 Melee 9 | . . . . . . 1 . 8 Projectile 328 | . 28 49 8 . 102 31 . 110 AOE 6 | . . 1 . . . 2 . 3 Critical Strikes 11 | . . 1 3 . 2 1 . 4 Damage Taken 5257 | . 352 1040 120 . 2086 428 . 1231 Core 1676 | . 61 144 42 . 548 142 . 739 Absorbed by Shields 43 | . . . . . 43 . . . Regen/Repaired (Parts) 14 | . . . . . . . . 14 Core Remaining (%) 40 | 100 . . 1 . 21 . . . Volleys Fired 112 | . 48 33 5 . 7 19 . . Largest 3 | . 2 2 2 . 2 3 . . Hottest 159 | . 125 120 60 . 60 159 . . Shots Fired 215 | . 96 52 10 . 14 43 . . Gun 88 | . 69 . . . . 19 . . Cannon 55 | . 27 4 . . . 24 . . Launcher 72 | . . 48 10 . 14 . . . Special . | . . . . . . . . . Kinetic 19 | . . . . . . 19 . . Thermal 113 | . 96 4 . . . 13 . . Explosive 72 | . . 48 10 . 14 . . . Electromagnetic 11 | . . . . . . 11 . . Robot Hit Streak 19 | . 19 13 15 . 2 4 . . Robot Miss Streak 10 | . 3 1 1 . 1 10 . . Penetration Max . | . . . . . . . . . Secondary Targets . | . . . . . . . . . Shots Hit Robots 145 | . 66 34 5 . 5 20 . 15 Core Hits 109 | . 26 36 7 . 20 14 . 6 Critical Kills . | . . . . . . . . . Critical Parts Destroyed . | . . . . . . . . . Critical Strikes 9 | . 5 . . . . 1 . 3 Burn 5 | . 5 . . . . . . . Corrupt 1 | . . . . . . 1 . . Sever 3 | . . . . . . . . 3 Melee Attacks 39 | . . 17 . . . . . 22 Impact . | . . . . . . . . . Slashing 39 | . . 17 . . . . . 22 Piercing . | . . . . . . . . . Sneak Attacks . | . . . . . . . . . Combat Hostiles . | . . . . . . . . . Follow-up Attacks . | . . . . . . . . . Damage Inflicted 5678 | . 940 2859 243 . 708 391 . 537 Guns 856 | . 642 . . . . 214 . . Cannons 464 | . 266 51 . . . 147 . . Explosions 3351 | . . 2370 243 . 708 30 . . Melee 975 | . . 438 . . . . . 537 Ramming 32 | . 32 . . . . . . . Kinetic 214 | . . . . . . 214 . . Thermal 1021 | . 908 51 . . . 62 . . Explosive 3321 | . . 2370 243 . 708 . . . Electromagnetic 115 | . . . . . . 115 . . Impact . | . . . . . . . . . Slashing 975 | . . 438 . . . . . 537 Piercing . | . . . . . . . . . Highest Corruption 15 | . . . . . 2 8 15 15 Average Corruption 10 | . . . . . 1 6 11 15 Corruption Purged . | . . . . . . . . . Corruption Blocked . | . . . . . . . . . Effects 48 | . . . . . 1 16 4 27 Message Errors 13 | . . . . . . 2 . 11 Matter Fused 14 | . . . . . . 7 . 7 Heat Flow Errors 4 | . . . . . . 3 . 1 Energy Discharges 2 | . . . . . 1 . . 1 Parts Fused 2 | . . . . . . . . 2 Data Loss (minor) 3 | . . . . . . 1 1 1 Data Loss (major) 2 | . . . . . . 1 . 1 Alerts 2 | . . . . . . 2 . . Misdirections 6 | . . . . . . . 3 3 Overload Shots . | . . . . . . . . . Overflow Damage 46 | . 5 41 . . . . . . Projectiles 5 | . 5 . . . . . . . Explosions 41 | . . 41 . . . . . . Melee . | . . . . . . . . . Knockbacks . | . . . . . . . . . Impact . | . . . . . . . . . Kinetic . | . . . . . . . . . Secondary . | . . . . . . . . . Self-Inflicted Damage 224 | . 16 141 . . 67 . . . Shots 7 | . . 4 . . 3 . . . Rammed 1 | . 1 . . . . . . . Targets Rammed 1 | . 1 . . . . . . . Kicked . | . . . . . . . . . Crushed . | . . . . . . . . . Highest Temperature 425 | . 312 36 22 . . 425 . 180 Average Temperature 97 | . 93 16 12 . . 119 . 83 Received Heat Transfer 741 | . 153 177 99 . 54 18 . 240 Siege Activations . | . . . . . . . . . Martial Activations . | . . . . . . . . . Shielding Activations . | . . . . . . . . . Robots Disrupted . | . . . . . . . . . Combat Hostiles . | . . . . . . . . . Robots Corrupted . | . . . . . . . . . Combat Hostiles . | . . . . . . . . . Parts Fried . | . . . . . . . . . Impact Corruptions . | . . . . . . . . . Robots Melted 1 | . 1 . . . . . . . Combat Hostiles 1 | . 1 . . . . . . . Parts Melted 5 | . 5 . . . . . . . Heat Transferred 2807 | . 2585 111 . . . 111 . . Parts Sabotaged . | . . . . . . . . . Parts Stolen . | . . . . . . . . . Parts Stripped . | . . . . . . . . . Power Chain Reactions . | . . . . . . . . . Alert | -11 -10 -10 -9 -7 -7 -6 -6 -6 ------- Run | Yrd Mat Sub Rec Fac DSF Fac Was Fac Maximum Alert Level 1 | . . . . . 1 . . . Low Security (%) 96 | 100 100 . 100 100 64 100 100 100 Level 1 3 | . . . . . 35 . . . Level 2 . | . . . . . . . . . Level 3 . | . . . . . . . . . Level 4 . | . . . . . . . . . Level 5 . | . . . . . . . . . High Security . | . . . . . . . . . Max Security . | . . . . . . . . . Peak Influence 241 | . 167 . 77 . 241 120 39 70 Initial 94 | . . . . . . 94 39 20 Average 44 | . 46 . 16 . 142 36 34 21 Influence Increases 1578 | . 334 295 87 . 281 305 . 276 Destroy 0b10 Robot/C 720 | . 220 180 20 . 120 100 . 80 Destroy 0b10 Robot/NC 60 | . 35 . 10 . 10 5 . . Destroy Leader 146 | . 56 10 . . 20 30 . 30 Successful Hack 54 | . 6 . . . . 4 . 44 Disable Machine 105 | . . . 15 . 15 60 . 15 Destroy Structure 88 | . 2 . 42 . 41 1 . 2 Partial Spotted 60 | . . . . . . 15 . 45 Lose Combat Pursuer 345 | . 15 105 . . 75 90 . 60 Influence Decreases 1539 | . 334 295 87 . 100 373 84 266 Entered New Map 170 | . . . . . . 87 74 9 Time Decay 1199 | . 324 285 87 . . 286 10 207 Lost Part 170 | . 10 10 . . 100 . . 50 Squads Dispatched 16 | . 2 . . . 2 8 . 4 Investigation 1 | . 1 . . . . . . . Extermination 3 | . . . . . . 2 . 1 Reinforcement 9 | . 1 . . . 2 3 . 3 Assault . | . . . . . . . . . Garrison 3 | . . . . . . 3 . . Intercept . | . . . . . . . . . Searches Triggered . | . . . . . . . . . Construction Impeded . | . . . . . . . . . Haulers Reinforced . | . . . . . . . . . Active Scanning Responses . | . . . . . . . . . Cargo Convoy Interrupts . | . . . . . . . . . Stealth | -11 -10 -10 -9 -7 -7 -6 -6 -6 --------- Run | Yrd Mat Sub Rec Fac DSF Fac Was Fac Distress Signals 2 | . 2 . . . . . . . Communications Jammed 2 | . . . . . . . . 2 Distress Signals 2 | . . . . . . . . 2 Times Spotted 99 | . 23 22 1 . 18 14 5 16 Peak Tracking Total 10 | . 10 4 1 . 7 4 5 8 Tactical Retreats 16 | . 1 2 . . 5 4 . 4 Traps | -11 -10 -10 -9 -7 -7 -6 -6 -6 ------- Run | Yrd Mat Sub Rec Fac DSF Fac Was Fac Traps Triggered 16 | . 4 3 . . 3 4 . 2 Indirectly 2 | . . . . . . 2 . . Trap Hack Attempts . | . . . . . . . . . Triggered . | . . . . . . . . . Disarmed . | . . . . . . . . . Reprogrammed . | . . . . . . . . . Reused . | . . . . . . . . . Traps Extracted . | . . . . . . . . . Installed . | . . . . . . . . . Triggered . | . . . . . . . . . Machines | -11 -10 -10 -9 -7 -7 -6 -6 -6 ---------- Run | Yrd Mat Sub Rec Fac DSF Fac Was Fac Machines Disabled 11 | . . 4 1 . 1 4 . 1 Max in Single Turn 3 | . . 3 1 . 1 2 . 1 Garrison Access 2 | . . . . . . . . 2 Machines Repaired . | . . . . . . . . . Machines Dismantled . | . . . . . . . . . Machines Sabotaged . | . . . . . . . . . Overloaded Fab Kills . | . . . . . . . . . Hacking | -11 -10 -10 -9 -7 -7 -6 -6 -6 --------- Run | Yrd Mat Sub Rec Fac DSF Fac Was Fac Machines Accessed 18 | . 2 1 . 1 . 5 . 9 Terminals 8 | . 1 . . 1 . . . 6 Fabricators 2 | . . . . . . 2 . . Repair Stations 3 | . . . . . . 2 . 1 Recycling Units 2 | . 1 . . . . 1 . . Scanalyzers . | . . . . . . . . . Garrison Access 2 | . . . . . . . . 2 Total Hacks 39 | . 5 4 . 1 . 9 . 20 Successful 26 | . 4 4 . 1 . 5 . 12 Failed 13 | . 1 . . . . 4 . 8 Catastrophic . | . . . . . . . . . Database Lockouts . | . . . . . . . . . Manual 8 | . 2 . . . . . . 6 Terminals 17 | . 2 . . 1 . . . 14 Fabricators 2 | . . . . . . 2 . . Repair Stations 7 | . . . . . . 4 . 3 Recycling Units 6 | . 3 . . . . 3 . . Scanalyzers . | . . . . . . . . . Garrison Access 3 | . . . . . . . . 3 Terminal Hacks 11 | . 1 4 . 1 . . . 5 Record 4 | . . 4 . . . . . . Part Schematic 1 | . . . . . . . . 1 Open DSF 2 | . . . . 1 . . . 1 Alert Level 1 | . . . . . . . . 1 Locate Traps 1 | . . . . . . . . 1 Hauler Manifests 2 | . 1 . . . . . . 1 Fabricator Hacks 2 | . . . . . . 2 . . Build 2 | . . . . . . 2 . . Repair Station Hacks 2 | . . . . . . . . 2 Scan Component 1 | . . . . . . . . 1 Repair 1 | . . . . . . . . 1 Recycling Unit Hacks 6 | . 3 . . . . 3 . . Process 2 | . 2 . . . . . . . Report Inventory 1 | . . . . . . 1 . . Retrieve Matter 2 | . 1 . . . . 1 . . Retrieve Components 1 | . . . . . . 1 . . Scanalyzer . | . . . . . . . . . Garrison Access Hacks 2 | . . . . . . . . 2 Seal Access 2 | . . . . . . . . 2 Unauthorized Hacks 3 | . . . . . . . . 3 Terminals 3 | . . . . . . . . 3 Botnet 3 | . . . . . . . . 3 Fabricators . | . . . . . . . . . Repair Stations . | . . . . . . . . . Recycling Units . | . . . . . . . . . Scanalyzers . | . . . . . . . . . Garrison Access . | . . . . . . . . . Data Cores Recovered 1 | . 1 . . . . . . . Used . | . . . . . . . . . Hacking Detections 10 | . 2 . . 1 . 3 . 4 Full Trace Events . | . . . . . . . . . Feedback Events . | . . . . . . . . . Feedback Blocked . | . . . . . . . . . Robot Schematics Acquired . | . . . . . . . . . Robots Built . | . . . . . . . . . Authchips . | . . . . . . . . . Time . | . . . . . . . . . Total Robot Build Rating . | . . . . . . . . . Part Schematics Acquired 1 | . . . . . . . . 1 Parts Built 1 | . . . . . . 1 . . Authchips . | . . . . . . . . . Time 234 | . . . . . . 234 . . Total Part Build Rating 6 | . . . . . . 6 . . Parts Repaired 1 | . . . . . . . . 1 Time 22 | . . . . . . . . 22 Parts Recycled . | . . . . . . . . . Recycled Matter . | . . . . . . . . . Retrieved Matter . | . . . . . . . . . Retrieved Components 1 | . . . . . . 1 . . Parts Scanalyzed . | . . . . . . . . . Part Schematics Acquired . | . . . . . . . . . Parts Damaged . | . . . . . . . . . Bothacking | -11 -10 -10 -9 -7 -7 -6 -6 -6 ------------ Run | Yrd Mat Sub Rec Fac DSF Fac Was Fac Used RIF Installer . | . . . . . . . . . Robots Hacked . | . . . . . . . . . Non-combat . | . . . . . . . . . Combat . | . . . . . . . . . Robot Hacks Applied . | . . . . . . . . . Relay Couplers Released . | . . . . . . . . . Fabnet Peak Effective % . | . . . . . . . . . Robots Rewired . | . . . . . . . . . Allies Hacked . | . . . . . . . . . Hacks Repelled . | . . . . . . . . . Allies | -11 -10 -10 -9 -7 -7 -6 -6 -6 -------- Run | Yrd Mat Sub Rec Fac DSF Fac Was Fac Total Allies 1 | . . . . . . . 1 . Largest Group 1 | . . . . . . . 1 . Highest-Rated Group 31 | . . . . . . . 31 . Highest-Rated Ally 31 | . . . . . . . 31 . Total Orders . | . . . . . . . . . Ally Attacks . | . . . . . . . . . Total Damage . | . . . . . . . . . Kills . | . . . . . . . . . Allies Corrupted . | . . . . . . . . . Allies Melted . | . . . . . . . . . Intel | -11 -10 -10 -9 -7 -7 -6 -6 -6 ------- Run | Yrd Mat Sub Rec Fac DSF Fac Was Fac Active Infowar (turns) 1309 | . . . . . . 756 34 519 Optics 238 | . . . . . . 238 . . Sensors 1057 | . . . . . . 518 34 505 Seismic 13 | . . . . . . . . 13 Triangulation 208 | . . . . . . 141 34 33 Jamming 453 | . . . . . . 135 . 318 ECM 351 | . . . . . . . . 351 Robot Analysis Total . | . . . . . . . . . Derelict Logs Recovered 3 | . . 3 . . . . . . Drone Launches . | . . . . . . . . . Drone Recoveries . | . . . . . . . . . Exploration | -11 -10 -10 -9 -7 -7 -6 -6 -6 ------------- Run | Yrd Mat Sub Rec Fac DSF Fac Was Fac Turns Passed 5671 | 62 1274 2052 390 50 352 851 34 606 Spaces Moved 5512 | 64 848 1526 334 33 211 799 121 1576 Core 91 | 7 . . . . 9 . . 75 Treads . | . . . . . . . . . Legs 427 | . . . . . 56 371 . . Wheels 2919 | 57 848 1526 334 33 121 . . . Hover . | . . . . . . . . . Flight 2075 | . . . . . 25 428 121 1501 Fastest Speed 23 | 50 80 107 107 125 37 27 27 23 Average Speed 83 | 76 106 123 110 125 126 76 27 29 Slowest Speed 270 | 80 155 155 140 125 270 200 27 150 Overloaded Moves . | . . . . . . . . . Propulsion Burnouts . | . . . . . . . . . Robots Hopped 6 | . . . . . . 4 . 2 Potential Cave-ins . | . . . . . . . . . Cave-ins Triggered . | . . . . . . . . . Exploration Rate (%) 50 | 3 99 67 68 1 91 17 83 27 Regions Visited 8 Branch Regions 2 Pre-discovered Areas 4 | . . 4 . . . . . . Known Exits Taken 2 | . . 1 . 1 . . . . Unknown Exits Taken 3 | 1 1 . 1 . . . . . Scrap Searched 4 | . . 4 . . . . . . Spaces Dug 21 | . . 19 . . . . . 2 Terrain Destroyed 342 | . . 239 52 . 49 . . 2 Melee 2 | . . . . . . . . 2 Projectile . | . . . . . . . . . AOE 340 | . . 239 52 . 49 . . . Terrain Rammed . | . . . . . . . . . Walls Destroyed . | . . . . . . . . . Machines Disabled . | . . . . . . . . . Actions | -11 -10 -10 -9 -7 -7 -6 -6 -6 --------- Run | Yrd Mat Sub Rec Fac DSF Fac Was Fac Total 6302 | 73 1124 1632 344 42 277 1001 122 1687 Wait 351 | . 177 5 . . 14 130 . 25 Move 5493 | 63 847 1525 333 32 210 791 120 1572 Hop 6 | . . . . . . 4 . 2 Pick Up 76 | 4 23 16 1 1 9 14 1 7 Fast Attach 43 | 6 6 . . . 6 14 . 11 Attach 34 | . 2 10 . 5 2 8 . 7 Detach 11 | . 2 3 . . . 4 . 2 Swap 36 | . 6 12 3 1 4 4 . 6 Drop 60 | . 12 11 2 2 4 13 1 15 Fire 112 | . 48 33 5 . 7 19 . . Melee 39 | . . 17 . . . . . 22 Ram 1 | . 1 . . . . . . . Kick . | . . . . . . . . . Crush . | . . . . . . . . . Escape Stasis 39 | . . . . . 21 . . 18 Rewire . | . . . . . . . . . Trap . | . . . . . . . . . Miscellaneous 1 | . . . . 1 . . . . Route ------- -11/Scrapyard -10/Materials (discovered 6 exits: [*Mat x3] / [*Min x2] / *Sub) -10/Subcaves (discovered 3 exits: *Mat x2 / *Rec) -9/Recycling -7/Factory -7/DSF -6/Factory -6/Waste -6/Factory (discovered 1 exit: *Fac) History --------- Turn | Location | Event 11 | -11/Scrapyard | Discovered new exit (range 16) 63 | -11/Scrapyard | Entered Materials 270 | -10/Materials | Discovered new exit (range 11) 306 | -10/Materials | Build established: Mutant 492 | -10/Materials | Destroyed 8 combat bots 611 | -10/Materials | Discovered new exit (range 15) 670 | -10/Materials | Discovered new exit (range 11) 808 | -10/Materials | Discovered new exit (range 15) 1084 | -10/Materials | Discovered new exit (range 15) 1193 | -10/Materials | Discovered new exit (range 16) 1337 | -10/Materials | Entered Subcaves 1352 | -10/Subcaves | Learned location of Zion (-6) 1357 | -10/Subcaves | Learned location of Mines (-10) 1406 | -10/Subcaves | Met a Zionite searching for "candidates" 1480 | -10/Subcaves | Discovered new exit (range 13) 1533 | -10/Subcaves | Lost 3 parts (1p1n1u) 1619 | -10/Subcaves | Visited Clippyterm 1622 | -10/Subcaves | Identified exit to Recycling 1622 | -10/Subcaves | Identified exit to Materials 1622 | -10/Subcaves | Learned Factory stockpile data 1928 | -10/Subcaves | A swath of the cavern ceiling suddenly collapsed 1966 | -10/Subcaves | Shifting Twisted Machinery released Mak. Axe 1968 | -10/Subcaves | Shifting Twisted Machinery released Mak. Power Source 2210 | -10/Subcaves | Shifting Twisted Machinery released Sub. Laser 2231 | -10/Subcaves | Shifting Twisted Machinery released Sub. Machine Gun 2233 | -10/Subcaves | Shifting Twisted Machinery released Sub. Monowheel 2252 | -10/Subcaves | Shifting Twisted Machinery released Mak. Shrapnel Gun 2401 | -10/Subcaves | Core integrity fell below 50% 3148 | -10/Subcaves | Ambushed by Subdweller buried in earth 3209 | -10/Subcaves | Core integrity fell below 20% 3389 | -10/Subcaves | Entered Recycling 3733 | -9/Recycling | Discovered new exit (range 4) 3779 | -9/Recycling | Entered Factory 3779 | -7/Factory | Evolved 6 slots: Power x1, Utility x4, Weapon x1 3826 | -7/Factory | Identified exit to DSF 3829 | -7/Factory | Entered DSF 3861 | -7/DSF | Additional patrols routed to DSF 4071 | -7/DSF | Lost 3 parts (2n1u) 4157 | -7/DSF | Released all parts (7) 4163 | -7/DSF | Core integrity fell below 50% 4174 | -7/DSF | Discovered new exit (range 14) 4181 | -7/DSF | Entered Factory 4181 | -6/Factory | Evolved 2 slots: Propulsion x2 4202 | -6/Factory | Lost 6 parts (4n2w) 4698 | -6/Factory | Fabricated Nuclear Pulse Array (x1) 4771 | -6/Factory | Garrison activated, responded to threat 4793 | -6/Factory | Build established: Skirmisher 4840 | -6/Factory | Discovered new exit (range 14) 5032 | -6/Factory | Sucked down chute 5032 | -6/Factory | Entered Waste 5033 | -6/Waste | Met a frightened Derelict 5045 | -6/Waste | Found Prototype Device 5047 | -6/Waste | EMP discharged 5047 | -6/Waste | System corruption reached 10% 5052 | -6/Waste | Spotted C-40 Crusher 5055 | -6/Waste | Spotted C-40 Crusher 5055 | -6/Waste | Spotted C-40 Crusher 5056 | -6/Waste | Spotted C-40 Crusher 5057 | -6/Waste | Spotted C-40 Crusher 5064 | -6/Waste | Spotted C-40 Crusher 5064 | -6/Waste | Discovered new exit (range 10) 5066 | -6/Waste | Identified exit to Factory 5066 | -6/Waste | Entered Factory 5067 | -6/Factory | Identified Adv. Kinecellerator 5211 | -6/Factory | Repaired Transmission Jammer 5295 | -6/Factory | Discovered new exit (range 16) 5318 | -6/Factory | Identified exit to Factory 5482 | -6/Factory | Lost 5 parts (2p2u1w) 5517 | -6/Factory | Core integrity fell below 50% 5538 | -6/Factory | Core integrity fell below 20% 5562 | -6/Factory | Lost 3 parts (1n2u) 5672 | -6/Factory | Destroyed by H-61 Shepherd with Heavy Assault Cannon Last Messages --------------- 05554_ Acquired 73 matter. 05554_ Acquired 63 matter. 05555_ Acquired Imp. Deuterium Engine. 05558_ System corrupted: Matter fused (-6). 05564_ Acquired Imp. Surge Thruster. 05583_ Acquired Surge Thruster. 05584_ YBBSUU1#U SPSZLRA1SC0 05594_ Acquired Imp. Light Armor Plating. 05601_ Acquired Seismic Detector. 05609_ System corrupted: Matter fused (-5). 05609_ TF Node disabled. 05609_ Imp. Sensor Array tumbles out of TF Node. 05609_ Imp. Signal Interpreter tumbles out of TF Node. 05612_ Acquired Imp. Signal Interpreter. 05614_ Acquired Imp. Sensor Array. 05621_ Acquired Cld. VTOL Module. 05624_ Acquired Imp. Surge Thruster. 05632_ System corrupted: Imp. Surge Thruster fused. 05653_ KPXGT